bitfinex/quotes_SOLUSD_20260115
["timestamp","ask_amount","ask_price","bid_price","bid_amount"]
[1768468219754,1.7586902,144.63,144.59,1.7783867]
[1768468219974,1.7586902,144.63,144.59,4.34490533]
[1768468220182,4.32520883,144.63,144.59,11.26101148]
[1768468220878,4.32520883,144.63,144.59,4.34490533]
[1768468221065,4.32520883,144.63,144.59,11.26098027]
[1768468221451,1.7586902,144.63,144.59,11.26098027]
[1768468221657,4.32520883,144.63,144.59,11.26098027]
[1768468222579,1.7586902,144.63,144.59,11.26098027]
[1768468222876,4.32520883,144.63,144.59,11.26098027]
[1768468223082,1.7586902,144.63,144.59,11.26098027]
[1768468223259,4.32520883,144.63,144.59,11.26098027]
[1768468224082,4.32520883,144.63,144.59,4.34490533]
[1768468225059,11.23949077,144.63,144.59,4.34490533]
[1768468225258,1.87703331,144.62,144.59,4.34490533]
[1768468225559,1.87703331,144.62,144.59,1.7783867]
[1768468225781,1.87703331,144.64,144.61,2.56651863]
[1768468225961,1.87703331,144.64,144.61,4.42704602]
[1768468226683,1.87703331,144.66,144.62,4.42704602]
[1768468228780,1.87703331,144.65,144.61,4.42704602]
[1768468232495,1.87703331,144.64,144.6,16.98704602]
[1768468232675,1.87703331,144.63,144.6,12.56]
[1768468233674,1.87703331,144.63,144.59,4.42704602]
[1768468235266,1.87703331,144.62,144.59,1.86052739]
[1768468235581,1.87703331,144.61,144.58,1.86052739]
[1768468235785,1.87703331,144.61,144.57,82.83742295]
[1768468235976,1.87703331,144.6,144.57,14.42052739]
[1768468237886,1.87703331,144.6,144.57,16.98704602]
[1768468239000,1.87703331,144.6,144.57,14.42052739]
[1768468240310,1.87703331,144.6,144.57,12.56]
[1768468241297,1.87703331,144.6,144.56,11.34457574]
[1768468241811,1.78374439,144.6,144.56,11.34457574]
[1768468242209,1.78374439,144.6,144.57,1.86052739]
[1768468242417,6.9148446,144.62,144.57,1.86052739]
[1768468242591,9.48136323,144.62,144.57,4.42704602]
[1768468243814,1.87703331,144.61,144.57,4.42704602]
[1768468244701,1.87703331,144.61,144.57,11.34410614]
[1768468246314,4.44355194,144.62,144.58,1.86052739]
[1768468246510,1.87703331,144.61,144.58,1.86052739]
[1768468248529,1.87703331,144.61,144.56,11.34445204]
[1768468248530,1.87703331,144.6,144.56,11.34445204]
[1768468248700,1.87703331,144.59,144.56,1.86052739]
[1768468251821,1.74525949,144.58,144.55,1.89903017]
[1768468252005,1.68525947,144.58,144.54,23.94401776]
[1768468252615,1.68525947,144.58,144.54,21.37749913]
[1768468252811,4.2517781,144.58,144.54,21.37749913]
[1768468253028,4.2517781,144.58,144.52,11.38461901]
[1768468253029,2.56651863,144.57,144.52,11.38461901]
[1768468253322,2.56651863,144.56,144.52,1.89903017]
[1768468253503,2.53980559,144.56,144.52,1.89903017]
[1768468254001,4.28506508,144.56,144.52,1.89903017]
[1768468254318,4.25177804,144.56,144.52,1.89903017]
[1768468255015,4.25177804,144.56,144.52,4.4655488]
[1768468255320,1.74525949,144.56,144.52,4.4655488]
[1768468255618,1.74525949,144.56,144.52,1.89903017]
[1768468257197,1.74525949,144.56,144.53,1.89903017]
[1768468259225,4.31177812,144.56,144.53,1.89903017]
[1768468259601,4.31177812,144.56,144.53,0.89903017]
[1768468260328,1.74525949,144.55,144.52,2.56651863]
[1768468260718,1.74525949,144.55,144.51,19.49990962]
[1768468260719,1.74525949,144.55,144.51,22.06642825]
[1768468260913,1.74525949,144.54,144.51,12.58]
[1768468261114,1.68525948,144.54,144.5,58.64341629]
[1768468261326,4.25177811,144.54,144.5,58.64341629]
[1768468261710,4.25177811,144.54,144.51,1.89903017]
[1768468264038,1.74525949,144.52,144.5,54.17786749]
[1768468264216,1.68525943,144.51,144.48,0.2]
[1768468265616,9.48648513,144.51,144.48,0.2]
[1768468265822,2.56651863,144.5,144.48,0.2]
[1768468266133,1.74525949,144.5,144.48,0.2]
[1768468267530,1.68525948,144.5,144.48,0.2]
[1768468268314,1.62525942,144.5,144.48,0.2]
[1768468268634,1.56525941,144.5,144.48,0.2]
[1768468271044,8.48570722,144.5,144.48,0.2]
[1768468271209,1.56525941,144.5,144.48,0.2]
[1768468271407,1.74525949,144.52,144.48,2.09903017]
[1768468271614,1.74525949,144.51,144.48,2.09903017]
[1768468272839,1.74525949,144.55,144.51,1.89903017]
[1768468273044,1.74525949,144.55,144.52,2.56651863]
[1768468275030,1.74525949,144.55,144.52,4.4655488]
[1768468275250,1.74525949,144.55,144.53,2.56651863]
[1768468275441,1.74525949,144.55,144.53,4.01755501]
[1768468276641,1.74525949,144.55,144.52,5.91658518]
[1768468276937,1.74525949,144.55,144.53,4.01755501]
[1768468277754,1.74525949,144.56,144.53,4.01755501]
[1768468278339,1.74525949,144.56,144.54,4.01755501]
[1768468278854,1.74525949,144.56,144.53,4.01755501]
[1768468279656,1.74525949,144.55,144.52,1.89903017]
[1768468279873,1.74525949,144.55,144.53,4.01755501]
[1768468280835,1.74525949,144.55,144.52,5.91658518]
[1768468281252,1.74525949,144.55,144.52,1.89903017]
[1768468281452,1.74525949,144.55,144.52,5.91658518]
[1768468281853,1.74525949,144.55,144.52,1.89903017]
[1768468282065,1.74525949,144.55,144.52,5.91658518]
[1768468292748,1.72539694,144.54,144.51,8.65938692]
[1768468299254,1.72539694,144.54,144.51,12.67694193]
[1768468300177,1.72539694,144.54,144.52,4.01755501]
[1768468300377,1.72539694,144.54,144.51,12.67694193]
[1768468303581,6.91766956,144.56,144.51,12.67694193]
[1768468303582,1.72539694,144.55,144.52,5.75703561]
[1768468307482,1.72539694,144.55,144.52,1.7394806]
[1768468307657,1.72539694,144.55,144.52,5.75703561]
[1768468307858,1.72539694,144.55,144.52,1.7394806]
[1768468308258,1.72539694,144.55,144.52,5.75703561]
[1768468310680,1.72539694,144.55,144.52,1.7394806]
[1768468310874,1.72539694,144.55,144.52,5.75703561]
[1768468312184,1.72539694,144.55,144.52,1.7394806]
[1768468313960,1.72539694,144.55,144.51,12.57608725]
[1768468315586,1.72539694,144.55,144.51,8.55853224]
[1768468318685,1.72539694,144.55,144.52,1.63862592]
[1768468319686,1.72539694,144.55,144.51,6.91990632]
[1768468319687,1.72539694,144.55,144.51,8.55853224]
[1768468319870,1.72539694,144.55,144.52,1.63862592]
[1768468320794,1.70069957,144.55,144.52,1.63862592]
[1768468321672,1.70069957,144.55,144.51,70.05848869]
[1768468322693,0.35259869,144.57,144.51,70.05848869]
[1768468322694,0.35259869,144.57,144.52,1.63862592]
[1768468322880,1.70069957,144.6,144.57,1.63862592]
[1768468323072,1.70069957,144.6,144.57,5.65618093]
[1768468323277,1.70069957,144.6,144.57,1.63862592]
[1768468324367,8.61634484,144.6,144.57,1.63862592]
[1768468325403,1.70069957,144.59,144.55,10.93535022]
[1768468325574,1.70069957,144.59,144.55,12.57397614]
[1768468325773,1.70069957,144.58,144.55,8.55642113]
[1768468326080,1.70069957,144.57,144.54,8.55703422]
[1768468327300,1.70069957,144.57,144.54,1.63862592]
[1768468327898,1.70069957,144.56,144.53,1.63862592]
[1768468328701,1.70069957,144.56,144.52,19.49944988]
[1768468328879,5.71825458,144.55,144.52,1.63862592]
[1768468330986,5.71825458,144.54,144.51,1.63862592]
[1768468331797,1.70069957,144.53,144.5,8.55895192]
[1768468340505,1.64069957,144.53,144.5,8.55895192]
[1768468342006,1.64069957,144.53,144.51,8.66491512]
[1768468342190,2.57238842,144.55,144.52,1.60591449]
[1768468342383,1.69722354,144.55,144.52,1.60591449]
[1768468342713,1.69722354,144.56,144.52,1.60591449]
[1768468345383,1.69722354,144.56,144.52,8.52499567]
[1768468345586,1.69722354,144.56,144.53,1.60591449]
[1768468349514,4.26961196,144.56,144.53,1.60591449]
[1768468352492,1.69722354,144.55,144.53,1.60591449]
[1768468354008,4.26961196,144.56,144.53,1.60591449]
[1768468357515,1.69722354,144.56,144.53,8.52487271]
[1768468358020,1.69722354,144.57,144.54,1.60591449]
[1768468360632,4.26961196,144.57,144.54,1.60591449]
[1768468360797,4.26961196,144.56,144.53,1.60591449]
[1768468362814,1.69722354,144.56,144.53,1.60591449]
[1768468371022,1.69722354,144.56,144.53,8.52483705]
[1768468371607,1.69722354,144.56,144.54,1.62331945]
[1768468372309,1.60704535,144.59,144.55,1.62331945]
[1768468372519,1.60704535,144.58,144.55,1.62331945]
[1768468373843,1.60704535,144.58,144.54,8.5417142]
[1768468374843,1.60704535,144.58,144.55,1.62331945]
[1768468378335,4.17943377,144.57,144.53,8.54211538]
[1768468378721,1.60704535,144.57,144.53,8.54211538]
[1768468379146,1.60704535,144.57,144.54,1.62331945]
[1768468380249,1.60704535,144.57,144.53,8.54211538]
[1768468380642,1.60704535,144.57,144.54,1.62331945]
[1768468380838,1.60704535,144.56,144.53,1.62331945]
[1768468381758,1.60704535,144.55,144.51,11.11552171]
[1768468381937,1.60704535,144.55,144.52,1.62331945]
[1768468383545,1.54704535,144.55,144.52,1.62331945]
[1768468384977,9.49045377,144.55,144.5,21.12353945]
[1768468385146,2.57238842,144.54,144.5,8.54353945]
[1768468385537,1.60704535,144.53,144.5,8.54353945]
[1768468385761,1.54704535,144.53,144.5,8.54353945]
[1768468388444,11.09749912,144.55,144.51,1.62331945]
[1768468388657,8.5251107,144.55,144.52,1.62331945]
[1768468389269,8.4651107,144.55,144.52,1.62331945]
[1768468390568,1.60704535,144.54,144.51,1.62331945]
[1768468391440,1.60704535,144.53,144.49,1.62331945]
[1768468391642,1.60704535,144.53,144.49,8.54417114]
[1768468392046,1.60704535,144.53,144.5,1.62331945]
[1768468392957,1.60704535,144.53,144.49,8.54417114]
[1768468398693,1.60704535,144.53,144.5,1.62331945]
[1768468399358,1.60704535,144.53,144.49,8.54417114]
[1768468400783,1.60704535,144.53,144.5,1.57655208]
[1768468401288,1.60704535,144.53,144.49,6.92085169]
[1768468401586,1.60704535,144.53,144.49,8.49740377]
[1768468403591,1.60343868,144.52,144.49,8.49740377]
[1768468403893,1.54343869,144.52,144.49,8.49740377]
[1768468405488,10.93841944,144.54,144.5,1.68561129]
[1768468405670,1.60343868,144.53,144.5,1.68561129]
[1768468410201,1.54343869,144.53,144.5,1.68561129]
[1768468416877,1.4834387,144.53,144.5,1.68561129]
[1768468419395,8.52216171,144.54,144.5,1.68561129]
[1768468425527,12.54185812,144.54,144.5,1.68561129]
[1768468425709,1.60343868,144.53,144.5,1.68561129]
[1768468433432,1.60343868,144.53,144.5,8.60596516]
[1768468438222,1.60343868,144.53,144.5,1.68561129]
[1768468440424,1.58389839,144.5,144.48,0.2]
[1768468440624,1.58389839,144.49,144.48,0.2]
[1768468440816,5.6035948,144.49,144.47,0.2]
[1768468441627,1.58389839,144.47,144.44,8.67070359]
[1768468442002,5.6035948,144.47,144.44,1.74760548]
[1768468442629,1.58389839,144.47,144.44,1.74760548]
[1768468444936,1.58389839,144.47,144.44,8.67076879]
[1768468445234,1.52389839,144.47,144.45,1.54760548]
[1768468451248,1.52389839,144.47,144.44,8.67076879]
[1768468451420,1.52389839,144.47,144.44,1.74760548]
[1768468452020,1.58389839,144.46,144.44,0.2]
[1768468452315,1.58389839,144.47,144.44,1.74760548]
[1768468468856,4.15837571,144.47,144.44,1.74760548]
[1768468469153,1.56710285,144.46,144.44,1.74760548]
[1768468469365,6.92169032,144.48,144.44,1.74760548]
[1768468469530,2.57447732,144.47,144.44,1.74760548]
[1768468471256,4.14158017,144.47,144.44,1.74760548]
[1768468471457,1.56710285,144.46,144.44,0.2]
[1768468476858,4.14158017,144.47,144.44,1.75864678]
[1768468478773,1.56710285,144.47,144.44,1.75864678]
[1768468479074,4.08158016,144.47,144.44,1.75864678]
[1768468483653,1.56710285,144.46,144.44,1.75864678]
[1768468484358,1.50710285,144.46,144.44,1.75864678]
[1768468485975,2.57447732,144.46,144.44,0.2]
[1768468486365,4.14158017,144.46,144.44,0.2]
[1768468489492,1.56710285,144.46,144.44,0.2]
[1768468489660,4.14158017,144.46,144.44,0.2]
[1768468491593,1.56710285,144.46,144.44,0.2]
[1768468493565,4.14158017,144.46,144.44,0.2]
[1768468494501,1.58600538,144.45,144.44,0.2]
[1768468496191,4.1604827,144.46,144.44,0.2]
[1768468497890,1.58600538,144.44,144.42,0.2]
[1768468498066,1.52600538,144.44,144.42,0.2]
[1768468498267,1.52600538,144.44,144.42,1.74124124]
[1768468499893,4.1004827,144.44,144.42,0.2]
[1768468500190,1.58600538,144.43,144.42,0.2]
[1768468500585,1.58600538,144.42,144.4,1.74124124]
[1768468500775,0.28912585,144.42,144.4,0.2]
[1768468500979,2.86360317,144.42,144.4,0.2]
[1768468501287,2.57447732,144.42,144.4,1.74124124]
[1768468501485,2.57447732,144.42,144.4,0.2]
[1768468501687,19.52337373,144.44,144.39,0.2]
[1768468501878,2.57447732,144.4,144.39,0.2]
[1768468502287,2.57447732,144.41,144.39,1.74124124]
[1768468502493,6.9237693,144.43,144.39,1.74124124]
[1768468502791,2.57447732,144.41,144.39,1.74124124]
[1768468503287,1.58600538,144.42,144.39,1.74124124]
[1768468503288,4.1604827,144.42,144.39,1.74124124]
[1768468503815,2.57447732,144.41,144.39,1.74124124]
[1768468503992,2.57447732,144.4,144.39,0.2]
[1768468504171,2.57447732,144.4,144.38,0.2]
[1768468504578,1.58600538,144.41,144.38,0.2]
[1768468504787,2.57447732,144.4,144.38,0.2]
[1768468504989,4.1604827,144.39,144.37,0.2]
[1768468505781,2.57447732,144.38,144.37,0.2]
[1768468505979,3.41307687,144.38,144.35,1.74124124]
[1768468506175,2.57447732,144.37,144.35,1.74124124]
[1768468506371,2.51447732,144.37,144.35,1.74124124]
[1768468506976,2.57447732,144.36,144.35,0.2]
[1768468507181,2.57447732,144.36,144.34,1.74124124]
[1768468507182,2.51447731,144.36,144.34,1.74124124]
[1768468507689,2.51447731,144.36,144.34,0.2]
[1768468507690,1.58600538,144.35,144.34,0.2]
[1768468507886,2.51447731,144.36,144.34,0.2]
[1768468509800,4.10048269,144.36,144.34,0.2]
[1768468511505,1.58600538,144.35,144.34,0.2]
[1768468511698,4.10048269,144.36,144.34,0.2]
[1768468513482,1.58600538,144.36,144.34,0.2]
[1768468516408,19.52632366,144.38,144.34,1.74124124]
[1768468516589,22.10080098,144.38,144.34,1.74124124]
[1768468517089,9.50080098,144.38,144.34,1.74124124]
[1768468517483,21.11182839,144.39,144.35,1.54124124]
[1768468517698,6.92524146,144.4,144.35,1.54124124]
[1768468518007,1.58600538,144.43,144.38,1.54124124]
[1768468518184,2.57447732,144.42,144.38,1.54124124]
[1768468518386,4.1604827,144.42,144.38,1.54124124]
[1768468518892,1.58600538,144.41,144.38,1.54124124]
[1768468521789,12.65236924,144.42,144.39,1.61280888]
[1768468523921,1.72808798,144.41,144.38,1.77880994]
[1768468524117,12.67892599,144.42,144.38,1.77880994]
[1768468524318,1.72808798,144.41,144.38,1.77880994]
[1768468524687,5.75435917,144.42,144.38,1.77880994]
[1768468525995,1.72808798,144.41,144.37,1.77880994]
[1768468526338,5.75435917,144.39,144.35,8.70624795]
[1768468526991,1.72808798,144.39,144.36,1.77880994]
[1768468527191,5.75435917,144.4,144.36,1.77880994]
[1768468527504,5.75435917,144.4,144.36,8.70591503]
[1768468527713,5.75435917,144.4,144.37,1.77880994]
[1768468528323,1.72808798,144.4,144.37,1.77880994]
[1768468529212,1.72808798,144.42,144.38,1.77880994]
[1768468529423,14.32808798,144.42,144.38,1.77880994]
[1768468530634,14.32808798,144.42,144.39,1.77880994]
[1768468533036,10.95018158,144.43,144.39,1.77880994]
[1768468533326,1.72808798,144.44,144.4,1.77880994]
[1768468533536,1.72808798,144.44,144.4,1.72833649]
[1768468534722,5.75435917,144.44,144.4,8.65347564]
[1768468536031,1.72808798,144.44,144.41,1.77880994]
[1768468537235,5.75435917,144.44,144.41,1.77880994]
[1768468537935,1.72808798,144.42,144.39,6.92562562]
[1768468538421,1.72808798,144.42,144.39,8.70443556]
[1768468540632,5.75435917,144.43,144.4,1.77880994]
[1768468541531,12.67817584,144.43,144.4,1.77880994]
[1768468543827,8.65190465,144.43,144.4,1.77880994]
[1768468544033,1.72808798,144.43,144.4,1.77880994]
[1768468547729,1.72808798,144.43,144.4,5.80508113]
[1768468548337,1.72808798,144.44,144.41,1.77880994]
[1768468548639,1.72808798,144.46,144.43,1.77880994]
[1768468549132,1.72808798,144.46,144.42,5.80508113]
[1768468549843,1.72808798,144.46,144.42,1.77880994]
[1768468550221,8.65043727,144.46,144.42,1.77880994]
[1768468550535,1.72808798,144.45,144.42,1.77880994]
[1768468550919,1.80103723,144.44,144.41,1.78278761]
[1768468551122,4.76389665,144.44,144.4,8.70784758]
[1768468551321,4.02627119,144.44,144.4,1.78278761]
[1768468551637,10.94981784,144.44,144.4,1.78278761]
[1768468552442,23.54981784,144.44,144.4,1.78278761]
[1768468552610,4.02627119,144.42,144.39,1.78278761]
[1768468552814,19.52354665,144.44,144.39,1.78278761]
[1768468552815,4.02627119,144.43,144.39,1.78278761]
[1768468553022,5.03739927,144.43,144.39,1.78278761]
[1768468553221,19.52354665,144.44,144.39,1.78278761]
[1768468553222,20.53467473,144.44,144.39,1.78278761]
[1768468553435,24.56094592,144.44,144.39,1.78278761]
[1768468554619,24.56094592,144.44,144.4,1.78278761]
[1768468555016,1.02457849,144.43,144.39,6.9255964]
[1768468555215,1.02457849,144.43,144.39,8.70838401]
[1768468555438,1.02457849,144.43,144.4,1.78278761]
[1768468559239,5.05084968,144.43,144.4,1.78278761]
[1768468561053,5.05084968,144.43,144.4,8.70789607]
[1768468561252,5.05084968,144.43,144.4,1.78278761]
[1768468561451,11.97465681,144.43,144.4,1.75278763]
[1768468561753,1.12072258,144.41,144.37,6.92647012]
[1768468562637,5.15652115,144.42,144.38,6.92615307]
[1768468562840,1.13024996,144.42,144.39,6.92566565]
[1768468563036,19.52343433,144.44,144.39,6.89566566]
[1768468563356,23.54970552,144.44,144.39,6.89566566]
[1768468563550,24.68937342,144.44,144.4,1.78278761]
[1768468565155,12.6,144.44,144.41,1.78278761]
[1768468565361,12.09777691,144.46,144.42,1.78278761]
[1768468565656,12.09777691,144.46,144.42,1.75278762]
[1768468566360,8.07150572,144.46,144.42,1.75278762]
[1768468568355,12.16433712,144.46,144.42,1.75278762]
[1768468568545,8.13806593,144.46,144.42,1.75278762]
[1768468568942,19.52185749,144.47,144.43,1.78278761]
[1768468569358,12.6,144.47,144.43,1.78278761]
[1768468569859,12.6,144.47,144.44,1.78278761]
[1768468570072,12.6,144.47,144.42,6.92418372]
[1768468570073,1.224511,144.5,144.46,1.78278761]
[1768468570240,20.74499296,144.5,144.46,1.75278764]
[1768468570564,19.52048196,144.5,144.46,1.75278764]
[1768468570735,23.54675315,144.5,144.46,1.75278764]
[1768468571056,23.54675315,144.5,144.46,6.92231135]
[1768468571057,13.86338103,144.5,144.46,6.92231135]
[1768468571262,17.88965222,144.5,144.46,6.92231135]
[1768468572243,17.88965222,144.5,144.47,1.78278761]
[1768468572548,17.88965222,144.5,144.47,1.75278763]
[1768468573162,13.86338103,144.5,144.47,1.75278763]
[1768468573767,1.26338103,144.5,144.47,1.75278763]
[1768468573972,5.34657699,144.51,144.47,1.75278763]
[1768468576457,12.26669824,144.51,144.47,1.75278763]
[1768468576654,10.94639244,144.51,144.47,1.75278763]
[1768468577044,12.29248218,144.52,144.48,1.78278761]
[1768468577361,13.97657505,144.53,144.48,4.02627119]
[1768468577543,12.6,144.53,144.48,4.02627119]
[1768468578468,12.6,144.53,144.49,6.92089417]
[1768468579245,12.6,144.53,144.5,1.78278761]
[1768468580566,19.51901957,144.53,144.5,1.78278761]
[1768468581951,12.6,144.53,144.5,1.78278761]
[1768468582564,12.6,144.53,144.5,1.75278762]
[1768468586171,10.87618197,144.54,144.5,1.75278762]
[1768468588973,8.30377481,144.54,144.5,1.75278762]
[1768468589164,10.87618197,144.54,144.5,1.75278762]
[1768468589356,10.87618197,144.54,144.5,1.72278763]
[1768468591278,8.30377481,144.54,144.5,1.72278763]
[1768468591465,10.87618197,144.54,144.5,1.72278763]
[1768468595564,1.60364199,144.52,144.49,2.01623822]
[1768468598197,11.10936155,144.53,144.49,2.01623822]
[1768468598380,8.53695439,144.53,144.49,2.01623822]
[1768468598585,11.10936155,144.53,144.49,2.01623822]
[1768468600482,8.53695439,144.53,144.49,2.01623822]
[1768468600675,11.10936155,144.53,144.49,2.01623822]
[1768468602198,8.53695439,144.53,144.49,2.01623822]
[1768468602394,1.64533054,144.52,144.49,2.01623822]
[1768468603098,8.57109594,144.53,144.49,2.01623822]
[1768468603303,11.1435031,144.53,144.49,8.93712305]
[1768468603906,8.57109594,144.53,144.5,2.01623822]
[1768468604086,11.1435031,144.53,144.5,2.01623822]
[1768468609209,8.57109594,144.53,144.5,2.01623822]
[1768468609412,11.1435031,144.53,144.5,2.01623822]
[1768468610591,9.49103766,144.54,144.5,2.01623822]
[1768468611092,11.19973807,144.54,144.5,2.01623822]
[1768468611285,8.62733091,144.54,144.5,2.01623822]
[1768468611891,1.714644,144.56,144.52,2.00560167]
[1768468612086,16.86705116,144.56,144.52,2.00560167]
[1768468612293,23.78478963,144.56,144.52,2.00560167]
[1768468612795,2.57240716,144.55,144.52,2.00560167]
[1768468613107,4.29292649,144.55,144.52,2.00560167]
[1768468614197,4.29873433,144.54,144.51,2.00560167]
[1768468614390,1.72632717,144.53,144.5,8.9258484]
[1768468614587,4.30447547,144.54,144.51,2.00560167]
[1768468616105,11.22309115,144.54,144.51,2.00560167]
[1768468618028,11.22309115,144.54,144.48,2.00560167]
[1768468618029,1.74889908,144.51,144.48,2.00560167]
[1768468618196,2.57240716,144.5,144.48,2.00560167]
[1768468618395,4.26130623,144.51,144.48,2.00560167]
[1768468618793,1.68889907,144.51,144.48,2.00560167]
[1768468618997,4.26130623,144.51,144.48,2.00560167]
[1768468620315,11.18129704,144.51,144.48,2.00560167]
[1768468620611,2.57240716,144.5,144.48,2.00560167]
[1768468622118,8.60888988,144.51,144.48,2.00560167]
[1768468622320,2.57240716,144.5,144.48,2.00560167]
[1768468622522,8.60888988,144.51,144.48,2.00560167]
[1768468622523,11.18129704,144.51,144.48,2.00560167]
[1768468624931,2.57240716,144.55,144.49,2.00560167]
[1768468624932,1.72615155,144.55,144.49,2.00560167]
[1768468625105,1.72615155,144.55,144.5,2.00560167]
[1768468625106,16.89855871,144.55,144.5,2.00560167]
[1768468625424,12.6,144.55,144.51,2.00560167]
[1768468626111,12.6,144.55,144.52,2.00560167]
[1768468626811,8.64883723,144.56,144.52,2.00560167]
[1768468627309,12.7,144.57,144.53,2.00560167]
[1768468627719,14.44140342,144.57,144.53,2.00560167]
[1768468627909,23.93089043,144.57,144.53,2.00560167]
[1768468630132,21.35848327,144.57,144.53,2.00560167]
[1768468635542,14.44140342,144.57,144.53,8.92450008]
[1768468635737,14.44140342,144.57,144.54,2.00560167]
[1768468637236,14.44140342,144.57,144.54,8.9240363]
[1768468639440,14.44140342,144.57,144.54,2.00560167]
[1768468639741,12.7,144.57,144.55,2.00560167]
[1768468642717,8.83146486,144.57,144.54,2.15259597]
[1768468644445,12.84867804,144.57,144.54,2.15259597]
[1768468644739,1.82663811,144.54,144.5,2.14380839]
[1768468645040,5.84385129,144.53,144.5,2.14380839]
[1768468645541,4.01721318,144.55,144.51,2.14380839]
[1768468645740,1.76003608,144.55,144.5,6.92039533]
[1768468645944,2.16083927,144.56,144.5,6.92039533]
[1768468646242,6.17805245,144.56,144.51,4.01721318]
[1768468646726,2.16083927,144.55,144.51,10.93692259]
[1768468647240,13.09563547,144.56,144.51,10.93692259]
[1768468647720,9.07842229,144.56,144.52,4.01721318]
[1768468647919,9.07842229,144.56,144.52,6.16102157]
[1768468648642,9.07842229,144.56,144.52,2.14380839]
[1768468648941,9.07842229,144.56,144.52,6.16102157]
[1768468651434,9.07842229,144.56,144.53,6.63e-06]
[1768468651654,2.16083927,144.55,144.52,4.01721318]
[1768468652133,9.07842229,144.56,144.52,4.01721318]
[1768468652334,9.07842229,144.56,144.53,4.01721318]
[1768468652742,2.16083927,144.56,144.53,4.01721318]
[1768468653247,9.078417,144.56,144.53,4.01721318]
[1768468653651,9.078417,144.56,144.52,4.68410815]
[1768468654165,6.91757773,144.56,144.53,0.66689497]
[1768468654347,9.17805539,144.57,144.53,0.66689497]
[1768468654964,9.17805539,144.57,144.54,0.65982079]
[1768468656959,0.1,144.57,144.54,4.67703397]
[1768468657855,2.26083927,144.57,144.54,4.67703397]
[1768468658432,9.17796201,144.57,144.54,0.65982079]
[1768468664857,2.16083927,144.56,144.53,4.01721318]
[1768468665059,2.16083927,144.56,144.52,11.58580879]
[1768468665449,2.16083927,144.56,144.53,0.64969573]
[1768468666250,13.19517519,144.57,144.53,0.64969573]
[1768468667039,9.17796201,144.57,144.53,0.64969573]
[1768468667241,13.19517519,144.57,144.53,0.64969573]
[1768468667761,9.07867786,144.56,144.53,0.64969573]
[1768468672168,2.06677578,144.54,144.51,4.66958922]
[1768468672471,8.98496926,144.55,144.52,0.65274156]
[1768468675072,8.98496926,144.55,144.51,0.65346004]
[1768468675278,8.98496926,144.55,144.51,11.59057541]
[1768468676274,8.98438612,144.56,144.53,0.6538131]
[1768468676473,2.06677578,144.56,144.53,4.67102628]
[1768468676873,9.08402018,144.57,144.54,0.65416211]
[1768468678764,9.08402018,144.57,144.53,4.67206132]
[1768468681880,2.06677578,144.54,144.51,0.65584793]
[1768468682089,2.06677578,144.53,144.5,62.15584793]
[1768468682292,2.06677578,144.52,144.49,0.65584793]
[1768468683279,2.06677578,144.54,144.49,0.65584793]
[1768468683494,6.08398896,144.53,144.49,0.65584793]
[1768468684082,13.00300148,144.53,144.49,0.65584793]
[1768468684983,8.9857883,144.53,144.49,0.65584793]
[1768468685181,13.00300148,144.53,144.49,0.65584793]
[1768468685485,13.00300148,144.53,144.48,0.6571282]
[1768468685486,2.06677578,144.51,144.48,0.6571282]
[1768468688287,2.06677578,144.51,144.47,11.59677505]
[1768468690282,2.06677578,144.51,144.48,4.01721318]
[1768468692382,2.06677578,144.51,144.48,10.93844877]
[1768468692583,2.06677578,144.53,144.5,4.67644432]
[1768468692804,2.06677578,144.55,144.52,0.65923114]
[1768468693091,2.06677578,144.56,144.52,4.01721318]
[1768468693989,2.06677578,144.55,144.52,4.01721318]
[1768468694579,2.06677578,144.55,144.51,10.93700238]
[1768468695791,2.06677578,144.55,144.52,4.01721318]
[1768468696001,2.06677578,144.55,144.51,6.9197892]
[1768468696297,2.06677578,144.55,144.52,4.01721318]
[1768468700295,2.06677578,144.55,144.52,10.93664584]
[1768468701301,2.06677578,144.55,144.52,9.49083408]
[1768468703195,2.06677578,144.55,144.51,9.4911487]
[1768468703804,2.06677578,144.55,144.51,6.91974728]
[1768468703989,2.06677578,144.55,144.51,9.4911487]
[1768468706204,2.18444047,144.54,144.5,68.4202387]
[1768468706407,2.18444047,144.54,144.49,2.57140142]
[1768468706408,2.18444047,144.53,144.49,2.57140142]
[1768468707103,2.18444047,144.53,144.49,9.49199104]
[1768468707287,2.18444047,144.53,144.5,2.57140142]
[1768468708311,2.18444047,144.53,144.5,9.49181632]
[1768468709115,2.18444047,144.53,144.5,6.9204149]
[1768468710408,2.18444047,144.53,144.49,9.49212386]
[1768468710822,2.18444047,144.52,144.49,6.92072244]
[1768468714721,2.18444047,144.5,144.46,2.5936907]
[1768468714895,2.18444047,144.5,144.46,9.51573061]
[1768468715404,2.18444047,144.5,144.47,6.92177794]
[1768468716100,2.18444047,144.5,144.47,2.57140142]
[1768468716412,2.18444047,144.5,144.45,24.22983731]
[1768468716413,2.18444047,144.53,144.5,0.02423299]